bitfinex-derivatives/quotes_ETHF0:USTF0_20240910
["timestamp","ask_amount","ask_price","bid_price","bid_amount"]
[1725961015881,0.42604,2347.1,2346.9,0.7689]
[1725961016981,0.42605,2347.0,2346.9,0.7689]
[1725961019583,2.63241567,2347.0,2346.9,0.7689]
[1725961019784,0.42605,2347.0,2346.9,0.7689]
[1725961019980,2.20636567,2347.1,2346.9,0.7689]
[1725961019981,2.63240567,2347.1,2346.9,0.7689]
[1725961020186,0.42605,2347.0,2346.9,0.7689]
[1725961020383,2.20636567,2347.1,2346.9,0.7689]
[1725961020587,2.20636567,2347.1,2346.9,1.19496]
[1725961021184,2.63239567,2347.2,2346.9,1.19496]
[1725961021488,0.42603,2347.2,2346.9,0.7689]
[1725961021691,0.42603,2347.2,2347.0,0.42604]
[1725961022292,2.63237567,2347.3,2347.0,0.42604]
[1725961022787,2.20636567,2347.4,2347.1,6.9208]
[1725961022984,1.06483,2347.7,2347.5,0.42596]
[1725961022985,2.20636567,2347.6,2347.5,0.42596]
[1725961023177,2.20636567,2347.8,2347.6,0.42594]
[1725961023384,2.63227567,2347.8,2347.7,0.3875]
[1725961024091,2.63227567,2347.8,2347.5,0.42595]
[1725961024500,2.63228567,2347.8,2347.5,41.22595]
[1725961024795,2.63227567,2347.8,2347.5,41.22595]
[1725961025190,2.63227567,2347.8,2347.5,0.42595]
[1725961025387,2.20636567,2347.9,2347.7,0.42591]
[1725961025591,2.20636567,2348.0,2347.7,2.66]
[1725961025890,3.82347,2348.5,2348.0,0.42587]
[1725961025891,2.20636567,2348.2,2348.0,0.42587]
[1725961026197,2.20636567,2348.2,2348.1,0.7767]
[1725961026489,3.18377566,2348.4,2348.1,0.7767]
[1725961026490,0.4258,2348.4,2348.1,0.7767]
[1725961026886,0.4258,2348.4,2348.1,1.20255]
[1725961027290,0.4258,2348.4,2348.1,0.7767]
[1725961027688,0.42583,2348.3,2348.1,0.7767]
[1725961028000,0.4258,2348.4,2348.1,0.7767]
[1725961028999,0.42579,2348.5,2348.1,0.7767]
[1725961029396,0.42579,2348.5,2348.1,1.20255]
[1725961029995,0.42579,2348.5,2348.1,0.7767]
[1725961030196,0.3831,2348.6,2348.1,0.7767]
[1725961030197,0.4258,2348.4,2348.1,0.7767]
[1725961030394,2.66,2348.5,2348.1,0.3825]
[1725961030593,0.42581,2348.3,2348.1,0.3825]
[1725961030795,0.42583,2348.2,2348.1,0.3825]
[1725961033093,3.08582,2348.3,2348.1,0.3825]
[1725961034491,2.20636567,2348.2,2348.1,0.3825]
[1725961034692,2.63219567,2348.2,2348.1,0.3825]
[1725961035199,2.20636567,2348.2,2348.1,0.3825]
[1725961036197,2.20636567,2348.4,2348.3,0.42581]
[1725961036396,2.20636567,2348.5,2348.2,3.0304]
[1725961036689,2.20636567,2348.7,2348.6,0.42576]
[1725961036899,2.20636567,2348.7,2348.5,0.42577]
[1725961037099,2.63209567,2348.8,2348.6,0.3854]
[1725961038205,2.20636567,2348.8,2348.6,0.81116]
[1725961038406,2.63207567,2348.9,2348.6,0.81116]
[1725961038791,0.8724,2349.2,2348.6,7.303]
[1725961038792,2.63206567,2349.0,2348.6,7.303]
[1725961039014,0.4257,2349.0,2348.7,0.82714]
[1725961039294,2.20636567,2349.2,2348.8,6.9176]
[1725961039492,2.20636567,2349.4,2349.1,0.42566]
[1725961039700,0.115,2349.6,2349.2,3.48795]
[1725961039701,2.63195567,2349.6,2349.2,3.48795]
[1725961040002,0.4256,2349.5,2349.2,3.0623]
[1725961040306,0.42559,2349.6,2349.2,3.0623]
[1725961040497,0.42559,2349.6,2349.2,0.4023]
[1725961040697,0.4256,2349.5,2349.2,0.4023]
[1725961041199,0.42559,2349.6,2349.2,0.4023]
[1725961041401,2.63190567,2349.9,2349.4,0.42561]
[1725961041708,0.42554,2349.9,2349.4,3.08561]
[1725961042199,0.42555,2349.8,2349.4,2.66]
[1725961042804,0.42555,2349.8,2349.4,3.08561]
[1725961042997,0.42555,2349.8,2349.4,2.66]
[1725961043200,0.42555,2349.8,2349.3,3.48113]
[1725961043395,0.42555,2349.8,2349.4,0.42561]
[1725961043592,0.42553,2349.9,2349.4,0.42561]
[1725961043902,2.66,2350.2,2349.5,3.08558]
[1725961044100,0.42549,2350.1,2349.6,3.08557]
[1725961044406,0.42549,2350.1,2349.7,0.42556]
[1725961044614,0.42546,2350.3,2349.8,0.79803]
[1725961044905,0.42542,2350.5,2350.0,3.0855]
[1725961045206,0.3891,2350.6,2350.1,0.42549]
[1725961045511,0.81451,2350.6,2350.1,0.42548]
[1725961045804,0.42542,2350.5,2350.0,3.08549]
[1725961045999,0.42541,2350.6,2350.1,0.42549]
[1725961046198,0.42542,2350.5,2350.1,0.42549]
[1725961046399,0.42541,2350.6,2350.1,0.42549]
[1725961046605,0.42542,2350.5,2350.0,3.0855]
[1725961046809,0.42541,2350.6,2350.1,0.42548]
[1725961047296,0.42539,2350.7,2350.2,0.42547]
[1725961047806,0.4254,2350.6,2350.2,0.42547]
[1725961048199,0.4254,2350.6,2350.1,0.42548]
[1725961048800,0.099,2351.1,2350.5,2.66]
[1725961049007,0.42528,2351.3,2350.7,3.08537]
[1725961049199,0.099,2351.7,2351.1,2.66]
[1725961049402,2.66,2351.6,2350.8,2.66]
[1725961049709,0.42525,2351.4,2350.8,2.66]
[1725961049901,2.66,2351.6,2350.8,2.66]
[1725961050608,2.759,2351.8,2350.8,2.66]
[1725961050803,1.16198,2351.8,2350.8,2.66]
[1725961051004,0.42523,2351.6,2351.0,3.08532]
[1725961051210,0.42524,2351.5,2351.0,2.66]
[1725961051405,2.66,2351.7,2351.0,2.66]
[1725961051708,0.42525,2351.4,2351.0,2.66]
[1725961051905,0.42525,2351.4,2350.8,0.42535]
[1725961051906,2.66,2351.7,2350.8,2.66]
[1725961052110,0.42526,2351.4,2350.8,2.66]
[1725961052308,0.42526,2351.4,2350.8,3.08535]
[1725961052610,0.42523,2351.5,2350.8,3.08535]
[1725961053006,0.42527,2351.3,2350.8,2.66]
[1725961053501,0.42527,2351.3,2350.7,44.27597]
[1725961053698,3.7231,2351.5,2350.7,43.8506]
[1725961053905,0.42531,2351.1,2350.7,3.0506]
[1725961054107,0.42531,2351.1,2350.7,2.66]
[1725961055115,0.42532,2351.1,2350.7,2.66]
[1725961055308,0.42532,2351.1,2350.7,3.0506]
[1725961055613,0.42531,2351.1,2350.7,3.0506]
[1725961056810,0.4253,2351.2,2350.7,3.47598]
[1725961057007,3.47058,2351.3,2350.8,0.42535]
[1725961057203,0.42528,2351.3,2350.8,0.42535]
[1725961057905,0.42528,2351.3,2350.9,2.66]
[1725961058106,0.42522,2351.6,2351.0,2.66]
[1725961058408,0.42521,2351.7,2351.2,0.42528]
[1725961058613,0.42521,2351.7,2351.3,0.7753]
[1725961059005,0.4252,2351.7,2351.3,0.7753]
[1725961059209,3.72295,2351.9,2351.3,0.7753]
[1725961059518,0.42521,2351.7,2351.3,0.7753]
[1725961059818,0.3964,2352.0,2351.5,0.42523]
[1725961059819,0.42516,2352.0,2351.5,0.42523]
[1725961060121,0.42513,2352.1,2351.6,0.42521]
[1725961060412,3.7921,2352.4,2351.6,3.08521]
[1725961060614,3.7921,2352.4,2351.7,0.42518]
[1725961060806,0.42512,2352.2,2351.6,3.0852]
[1725961061007,0.42511,2352.2,2351.6,2.66]
[1725961061315,0.42509,2352.3,2351.8,2.66]
[1725961061517,0.42512,2352.2,2351.9,0.7494]
[1725961061708,0.42514,2352.1,2351.5,3.08522]
[1725961061909,0.42511,2352.2,2351.7,40.8]
[1725961062105,0.4981,2352.6,2351.7,40.8]
[1725961062106,0.099,2352.6,2352.1,2.66]
[1725961062307,0.099,2353.0,2352.2,4.2512]
[1725961062511,2.66,2353.0,2352.2,0.4251]
[1725961062713,0.425,2352.8,2352.2,0.4251]
[1725961063018,0.425,2352.8,2352.1,2.66]
[1725961063310,1.45693,2353.2,2351.8,0.7791]
[1725961063311,2.66,2352.6,2351.8,0.7791]
[1725961063517,2.66,2352.6,2351.9,0.42515]
[1725961063719,1.0626,2352.6,2351.9,2.66]
[1725961063907,3.08508,2352.4,2351.8,0.7791]
[1725961064103,2.66,2352.4,2351.8,0.7791]
[1725961064618,2.66,2352.4,2351.8,1.20427]
[1725961064808,2.66,2352.4,2351.9,0.42516]
[1725961065009,2.66,2352.4,2351.8,1.20427]
[1725961065606,2.66,2352.4,2351.9,0.42516]
[1725961065816,0.4251,2352.3,2351.8,0.7791]
[1725961066012,2.66,2352.4,2351.8,0.7791]
[1725961066425,3.0249,2352.6,2351.8,0.7791]
[1725961066620,3.44994,2352.6,2352.0,0.42513]
[1725961066914,3.44994,2352.6,2352.0,0.42514]
[1725961067307,2.66,2352.6,2352.1,0.42512]
[1725961067621,2.66,2352.6,2351.9,0.42516]
[1725961067919,2.66,2352.6,2351.8,0.7791]
[1725961067920,2.66,2352.6,2352.1,0.42511]
[1725961068112,3.08504,2352.6,2352.1,0.42512]
[1725961068314,0.42503,2352.7,2351.9,2.66]
[1725961068514,0.42504,2352.6,2352.1,0.42512]
[1725961068911,0.099,2352.9,2351.9,2.66]
[1725961069112,0.42503,2352.7,2352.2,0.4251]
[1725961069313,4.22604,2353.0,2352.1,2.66]
[1725961069314,0.42501,2352.8,2352.3,0.42509]
[1725961069520,3.0486,2353.0,2352.4,0.7615]
[1725961069718,2.66,2352.8,2351.6,40.8]
[1725961069923,2.66,2352.5,2351.7,0.3937]
[1725961070128,0.099,2352.7,2351.9,3.08515]
[1725961070315,0.099,2352.9,2352.1,2.66]
[1725961070518,0.099,2352.9,2352.2,0.3678]
[1725961070717,0.42495,2353.1,2352.6,0.42502]
[1725961070911,0.3699,2353.2,2352.4,2.66]
[1725961071115,2.66,2353.3,2352.4,2.66]
[1725961071423,3.1539,2353.5,2352.6,2.66]
[1725961071621,0.42489,2353.5,2353.0,0.42495]
[1725961071819,0.42489,2353.5,2352.6,2.66]
[1725961071820,0.42487,2353.5,2353.1,0.3937]
[1725961072017,0.42487,2353.5,2352.7,0.3941]
[1725961072018,2.66,2353.4,2352.7,0.425]
[1725961072218,0.42492,2353.3,2352.8,0.425]
[1725961072515,0.42489,2353.5,2352.7,0.3937]
[1725961072717,0.42489,2353.5,2352.9,0.42497]
[1725961072923,0.4249,2353.4,2352.9,0.42497]
[1725961073118,0.42489,2353.5,2353.0,0.42496]
[1725961073327,0.42489,2353.4,2352.9,0.42497]
[1725961073828,0.4249,2353.4,2352.9,0.42497]
[1725961074030,0.42488,2353.5,2353.0,0.42496]
[1725961074226,0.42492,2353.3,2352.8,0.3692]
[1725961074431,0.42492,2353.3,2352.9,0.42498]
[1725961074623,0.42492,2353.3,2352.8,0.79419]
[1725961074825,2.66,2353.4,2352.8,0.79419]
[1725961074826,2.66,2353.4,2352.8,0.3692]
[1725961075021,1.06222,2353.5,2352.9,0.42498]
[1725961075228,0.42492,2353.3,2352.8,0.79419]
[1725961075430,0.7466,2353.7,2352.8,0.3692]
[1725961075431,0.42493,2353.2,2352.8,0.3692]
[1725961075625,0.42493,2353.2,2352.8,0.79419]
[1725961075822,0.42492,2353.3,2352.8,0.79419]
[1725961076131,0.42492,2353.3,2352.9,0.42498]
[1725961076328,0.42492,2353.3,2352.9,0.42497]
[1725961076630,2.66,2353.4,2352.8,0.3692]
[1725961076925,0.42494,2353.2,2352.8,0.7942]
[1725961077919,0.42495,2353.1,2352.8,0.3692]
[1725961078122,0.42497,2353.0,2352.7,0.3937]
[1725961078423,0.42498,2352.9,2352.7,0.3937]
[1725961078829,0.42497,2353.0,2352.7,5.06912]
[1725961079130,0.42496,2353.1,2352.7,0.81872]
[1725961079430,0.42494,2353.2,2352.8,0.42499]
[1725961079731,0.42495,2353.1,2352.8,0.425]
[1725961079923,1.06233,2353.2,2352.7,0.3937]
[1725961080225,0.42497,2353.0,2352.7,0.3937]
[1725961080431,3.7223,2353.3,2352.7,0.3937]
[1725961080432,0.42499,2352.9,2352.7,0.3937]
[1725961080628,1.06233,2353.2,2352.7,0.3937]
[1725961080827,2.66,2353.0,2352.4,0.3719]
[1725961081028,1.19979,2352.9,2352.6,0.42503]
[1725961081224,0.3848,2353.1,2352.6,0.42503]
[1725961081425,2.66,2353.2,2352.4,3.4201]
[1725961081735,0.42491,2353.3,2352.9,0.42497]
[1725961081930,0.42491,2353.3,2353.0,1.18866]
[1725961082133,0.4249,2353.4,2353.1,4.67454]
[1725961082332,0.4249,2353.4,2353.0,1.18865]
[1725961082827,0.3841,2353.6,2353.1,0.42494]
[1725961083034,0.4249,2353.4,2353.1,0.42494]
[1725961083337,1.44626,2353.6,2353.0,0.7637]
[1725961083642,1.44626,2353.6,2352.6,1.06257]
[1725961083643,2.66,2353.1,2352.1,0.214]
[1725961083835,1.06246,2352.9,2352.3,0.42509]
[1725961084031,0.42501,2352.8,2352.2,0.7938]
[1725961084437,0.42499,2352.9,2352.5,0.42505]
[1725961084642,0.42498,2352.9,2352.5,0.42505]
[1725961084936,0.425,2352.8,2352.4,0.42506]
[1725961085139,0.425,2352.8,2352.5,0.42505]
[1725961085441,0.425,2352.8,2352.4,0.42506]
[1725961085742,0.425,2352.8,2352.5,0.42505]
[1725961086437,0.42502,2352.7,2352.4,0.42506]
[1725961086637,1.1811,2353.0,2352.4,0.42506]
[1725961086638,0.42502,2352.8,2352.4,0.42506]
[1725961086948,0.42503,2352.7,2352.3,0.42508]
[1725961087247,3.72246,2352.9,2352.2,0.7938]
[1725961087428,0.42503,2352.7,2352.3,0.42508]
[1725961087630,0.42503,2352.7,2352.2,0.7938]
[1725961087838,2.66,2352.9,2352.4,0.42507]
[1725961088040,1.1811,2353.0,2352.3,2.66]
[1725961088238,1.06235,2353.2,2352.7,0.42501]
[1725961088436,0.42497,2353.0,2352.8,0.3986]
[1725961088635,2.66,2353.3,2352.8,0.82359]
[1725961088636,0.42495,2353.1,2352.8,0.82359]
[1725961089140,0.42495,2353.1,2352.8,5.07319]
[1725961090142,1.0623,2353.3,2352.8,5.07319]
[1725961090444,0.42495,2353.1,2352.8,0.82359]
[1725961090640,0.42494,2353.2,2352.9,0.42498]
[1725961090940,0.3728,2353.4,2353.1,0.42494]
[1725961091143,0.4249,2353.4,2353.1,0.42494]
[1725961091439,1.06216,2353.6,2353.2,4.2496]
[1725961091746,3.4232,2353.8,2352.9,3.0634]
[1725961091938,0.42488,2353.5,2353.3,41.2249]
[1725961092140,0.42487,2353.6,2353.3,41.2249]
[1725961092446,0.42487,2353.5,2353.4,0.3907]
[1725961092939,1.44919,2354.0,2353.4,10.6395]
[1725961093245,0.42484,2353.7,2353.4,0.81558]
[1725961093643,0.7875,2354.0,2353.4,4.6395]
[1725961093849,0.42483,2353.8,2353.5,0.42487]
[1725961094039,0.42481,2353.9,2353.5,4.67367]
[1725961094342,0.42483,2353.8,2353.5,0.42487]
[1725961094542,0.42483,2353.8,2353.4,1.18988]
[1725961094744,1.06201,2353.9,2353.4,0.3907]
[1725961094951,0.42483,2353.8,2353.4,3.47558]
[1725961095141,0.42481,2353.9,2353.5,0.42487]
[1725961095341,1.21229,2354.0,2353.6,0.42485]
[1725961095536,1.21228,2354.0,2353.7,0.42483]
[1725961095744,0.7875,2354.0,2353.7,0.42483]
[1725961096042,0.42478,2354.1,2353.8,0.42482]
[1725961096536,0.79273,2354.3,2353.9,3.08478]
[1725961097146,0.79273,2354.3,2353.6,0.3843]
[1725961097147,0.368,2354.3,2353.7,2.66]
[1725961097345,0.42478,2354.1,2353.7,0.42483]
[1725961097847,0.42477,2354.1,2353.7,0.42483]
[1725961098045,0.3926,2354.2,2353.6,0.80915]
[1725961098244,0.3926,2354.2,2353.8,0.42481]
[1725961098245,0.81736,2354.2,2353.8,0.42481]
[1725961099142,0.79274,2354.3,2353.9,0.42479]
[1725961099445,0.79274,2354.3,2354.0,0.3744]
[1725961099644,0.42476,2354.2,2354.0,0.3744]
[1725961100244,0.42476,2354.1,2353.7,3.08483]
[1725961101238,0.42476,2354.1,2353.7,0.42483]
[1725961101448,0.42475,2354.2,2353.7,0.42483]
[1725961102037,0.42475,2354.2,2353.8,0.42482]
[1725961102436,0.79274,2354.3,2353.9,0.4248]
[1725961102643,0.79274,2354.3,2353.9,0.42479]
[1725961102644,0.79273,2354.3,2353.9,0.42479]
[1725961103246,0.368,2354.3,2353.7,2.66]
[1725961103648,0.79273,2354.3,2353.9,0.42479]
[1725961103946,0.3983,2354.4,2353.9,2.66]
[1725961104241,0.82302,2354.4,2354.0,0.42478]
[1725961104454,0.82302,2354.4,2354.1,0.386]
[1725961104750,0.42473,2354.3,2354.1,0.386]
[1725961104939,0.42475,2354.2,2354.1,0.386]
[1725961105141,0.3983,2354.4,2354.1,0.386]
[1725961105142,0.42474,2354.3,2354.1,0.386]
[1725961105347,0.42473,2354.3,2354.1,0.386]
[1725961106567,0.82302,2354.4,2354.1,0.386]
[1725961107247,0.42473,2354.3,2354.1,0.386]
[1725961107441,0.82303,2354.4,2354.1,0.386]
[1725961107854,0.42473,2354.3,2353.9,3.0848]
[1725961109157,2.20636567,2354.1,2353.9,3.0848]
[1725961109359,2.20636567,2354.1,2353.7,0.404]
[1725961109360,2.20636567,2354.1,2353.8,0.42482]
[1725961110044,2.20636567,2354.1,2353.7,3.064]
[1725961110249,2.20636567,2354.2,2353.9,0.4248]
[1725961110451,2.20636567,2354.1,2353.9,0.4248]
[1725961111151,2.20636567,2354.1,2353.8,0.42481]
[1725961111656,2.20636567,2354.1,2353.8,0.42482]
[1725961112257,2.20636567,2354.1,2353.9,0.42479]
[1725961112447,2.20636567,2354.1,2353.9,2.66]
[1725961112755,2.20636567,2354.1,2353.9,7.33279]
[1725961112953,2.20636567,2354.1,2353.9,3.0848]
[1725961113151,2.20636567,2354.1,2353.9,2.66]
[1725961113356,2.20636567,2354.1,2353.9,3.0848]
[1725961114061,2.20636567,2354.1,2354.0,0.42478]
[1725961114251,2.20636567,2354.1,2354.0,4.248]
[1725961114850,2.20636567,2354.1,2353.9,3.0848]
[1725961115051,2.20636567,2354.0,2353.7,3.064]
[1725961115243,2.63115567,2354.0,2353.7,3.48882]
[1725961115455,2.20636567,2354.0,2353.7,3.064]
[1725961115751,2.20636567,2354.0,2353.8,0.42482]
[1725961116054,0.42478,2354.1,2353.8,0.42482]
[1725961116257,0.42478,2354.1,2353.7,3.48882]
[1725961116756,0.42478,2354.1,2353.8,0.42481]
[1725961117057,0.42478,2354.1,2353.7,3.48882]
[1725961117246,0.42481,2353.9,2353.6,0.80915]
[1725961117444,0.3891,2353.8,2353.6,0.80915]
[1725961117657,0.42481,2353.9,2353.6,0.80915]
[1725961118858,0.7695,2354.0,2353.7,0.42483]
[1725961118859,0.81759,2354.0,2353.7,0.42483]
[1725961119061,0.42479,2354.0,2353.6,0.80914]
[1725961119358,0.4248,2353.9,2353.7,2.66]
[1725961120049,1.06196,2354.0,2353.7,2.66]
[1725961120353,1.06196,2354.0,2353.5,7.53637]
[1725961120662,0.42483,2353.8,2353.5,3.45437]
[1725961121250,0.42481,2353.9,2353.6,0.42485]
[1725961121450,0.42482,2353.8,2353.5,3.45436]
[1725961121952,0.42486,2353.6,2353.4,0.3975]
[1725961122153,0.42486,2353.6,2353.3,43.8849]
[1725961122353,1.83482,2353.7,2353.1,0.3975]
[1725961122551,1.83482,2353.7,2352.9,3.08497]
[1725961122552,1.06221,2353.5,2352.9,3.0446]
[1725961122854,0.42495,2353.1,2352.7,2.66]
[1725961123055,0.42495,2353.1,2352.7,3.0446]
[1725961123252,0.42497,2353.0,2352.7,3.0446]
[1725961123454,0.42499,2352.9,2352.7,0.3846]
[1725961123655,0.3944,2352.9,2352.7,0.3846]
[1725961124158,0.3944,2352.9,2352.7,0.80961]
[1725961124461,0.3944,2352.9,2352.7,0.3846]
[1725961124662,0.42501,2352.8,2352.4,0.42507]
[1725961124860,0.42502,2352.7,2352.4,0.7553]
[1725961125055,0.3944,2352.9,2352.4,0.7553]
[1725961125056,0.42501,2352.8,2352.4,0.7553]
[1725961125455,1.45688,2352.9,2352.4,0.7553]
[1725961125663,0.42503,2352.7,2352.4,0.7553]
[1725961125968,0.3944,2352.9,2352.4,1.18036]
[1725961126261,0.42502,2352.7,2352.4,0.7553]
[1725961127755,0.42504,2352.6,2352.4,0.7553]
[1725961128255,0.42505,2352.6,2352.4,0.3774]
[1725961128463,0.42504,2352.6,2352.4,0.3774]
[1725961129257,0.42502,2352.7,2352.4,0.3774]
[1725961129565,0.42504,2352.6,2352.4,0.3774]
[1725961130861,0.3944,2352.9,2352.4,0.3774]
[1725961131063,0.42501,2352.8,2352.4,0.80247]
[1725961131362,0.8194,2352.9,2352.5,3.48174]
[1725961131863,0.3944,2352.9,2352.6,0.42503]
[1725961132367,0.42498,2353.0,2352.6,0.42503]
[1725961132555,1.82425,2353.2,2352.6,0.42503]
[1725961132758,1.82425,2353.2,2352.5,3.48174]
[1725961132956,0.42497,2353.0,2352.5,3.0567]
[1725961133161,0.42498,2352.9,2352.6,0.42503]
[1725961133364,0.42498,2352.9,2352.5,3.48174]
[1725961134057,1.82425,2353.2,2352.5,3.0567]
[1725961134058,0.42502,2352.7,2352.5,3.0567]
[1725961134257,3.4219,2353.2,2352.5,0.3967]
[1725961134258,1.06248,2352.9,2352.5,0.3967]
[1725961134463,0.42503,2352.7,2352.5,0.3967]
[1725961134767,1.06239,2353.1,2352.5,0.3967]
[1725961134965,0.42499,2352.9,2352.5,0.82175]
[1725961135357,0.425,2352.8,2352.5,0.82175]
[1725961135954,0.42502,2352.7,2352.5,0.3967]
[1725961136362,0.42502,2352.8,2352.5,0.3967]
[1725961137164,0.42502,2352.8,2352.5,0.82175]
[1725961137960,0.42497,2353.0,2352.6,0.42502]
[1725961138164,0.42496,2353.0,2352.6,0.42502]
[1725961138567,0.42499,2352.9,2352.6,0.42502]
[1725961139571,0.4035,2353.1,2352.5,0.3967]
[1725961139572,0.42497,2353.0,2352.7,0.42501]
[1725961139872,0.42497,2353.0,2352.6,0.42503]
[1725961140071,0.42497,2353.0,2352.7,0.42502]
[1725961140364,0.4035,2353.1,2352.6,0.42503]
[1725961140365,0.42498,2352.9,2352.6,0.42503]
[1725961140568,0.42497,2353.0,2352.7,0.42502]
[1725961140768,0.4035,2353.1,2352.6,0.42502]
[1725961140769,0.42498,2352.9,2352.6,0.42502]
[1725961140959,0.42502,2352.8,2352.5,0.3967]
[1725961141163,0.42501,2352.8,2352.5,0.82175]
[1725961141359,0.42499,2352.9,2352.6,0.42503]
[1725961141571,0.82845,2353.1,2352.8,0.42499]
[1725961141762,0.3828,2353.2,2352.9,3.47598]
[1725961141763,0.42494,2353.2,2352.9,3.47598]
[1725961141964,0.42494,2353.2,2353.0,0.3654]
[1725961142166,0.42491,2353.3,2353.0,0.79035]
[1725961142370,0.3896,2353.5,2353.1,2.66]
[1725961142677,0.42486,2353.6,2353.3,0.4249]
[1725961142865,0.42486,2353.6,2353.4,0.3863]
[1725961143374,0.42486,2353.6,2353.5,0.3654]
[1725961145075,0.42485,2353.7,2353.5,0.3654]
[1725961145268,0.42481,2353.9,2353.5,0.79026]
[1725961146186,0.80229,2354.0,2353.6,0.42485]
[1725961146479,0.4248,2353.9,2353.6,0.42485]
[1725961146682,1.06192,2354.1,2353.5,0.3654]
[1725961147070,0.42481,2353.9,2353.5,0.3654]
[1725961147379,0.42479,2354.0,2353.6,0.42485]
[1725961147674,0.4248,2353.9,2353.6,0.42485]
[1725961148175,0.4248,2353.9,2353.6,2.66]
[1725961148380,0.42479,2354.0,2353.6,3.08485]
[1725961148678,1.06187,2354.2,2353.6,3.08485]
[1725961148879,0.4248,2354.0,2353.6,2.66]
[1725961149083,1.06187,2354.2,2353.6,2.66]
[1725961149279,0.4248,2353.9,2353.6,3.08485]
[1725961149478,0.4248,2353.9,2353.6,2.66]
[1725961150683,1.06198,2354.0,2353.5,0.3654]
[1725961150978,1.06193,2354.1,2353.5,0.3654]
[1725961151175,0.42482,2353.9,2353.5,0.79027]
[1725961152575,0.42481,2353.9,2353.6,0.42485]
[1725961153179,0.42478,2354.1,2353.5,0.3654]
[1725961153389,0.42479,2354.0,2353.7,0.42483]
[1725961153683,1.06189,2354.2,2353.6,0.42484]
[1725961153877,0.4248,2353.9,2353.6,0.42484]
[1725961154381,0.42482,2353.8,2353.5,0.79026]
[1725961154581,0.42483,2353.8,2353.5,0.79026]
[1725961154783,0.42484,2353.7,2353.5,0.3654]
[1725961154984,0.42483,2353.8,2353.5,0.3654]
[1725961155178,0.42483,2353.8,2353.5,0.79027]
[1725961155883,0.42483,2353.8,2353.5,0.3654]
[1725961155884,0.42484,2353.8,2353.5,0.3654]
[1725961156588,0.42484,2353.8,2353.5,0.79027]
[1725961156789,0.42484,2353.8,2353.5,0.3654]
[1725961157987,1.06198,2354.0,2353.5,0.3654]
[1725961157988,0.42484,2353.7,2353.5,0.3654]
[1725961158380,1.06202,2353.9,2353.5,0.3654]
[1725961158381,1.43092,2353.9,2353.5,0.3654]
[1725961158587,0.7583,2353.8,2353.5,0.3654]
[1725961158777,0.7583,2353.8,2353.4,0.3863]
[1725961158778,0.42485,2353.7,2353.4,0.3863]
[1725961159083,0.7583,2353.8,2353.4,0.3863]
[1725961159285,0.42487,2353.6,2353.4,0.3863]
[1725961161886,0.3812,2353.8,2353.5,0.42487]
[1725961162191,0.80602,2353.8,2353.5,3.08487]
[1725961162390,0.42482,2353.8,2353.5,3.08487]
[1725961162592,0.42479,2354.0,2353.7,0.42483]
[1725961162789,0.42479,2354.0,2353.6,0.42485]
[1725961162989,0.80008,2354.1,2353.7,0.42483]
[1725961163202,0.42479,2354.0,2353.8,0.3902]
[1725961163496,0.42479,2354.0,2353.9,0.3792]
[1725961164486,0.3753,2354.1,2353.9,0.3792]
[1725961164787,0.42478,2354.0,2353.9,0.3792]
[1725961165792,0.4248,2353.9,2353.8,0.3902]
[1725961166192,1.06196,2354.0,2353.6,0.3697]
[1725961166391,0.4248,2353.9,2353.6,0.3697]
[1725961166998,0.42478,2354.0,2353.7,0.42483]
[1725961167491,0.42478,2354.0,2353.7,0.42484]
[1725961168290,0.42478,2354.0,2353.6,0.79454]
[1725961169289,2.20636567,2353.9,2353.6,0.79454]
[1725961170294,2.63114567,2354.0,2353.7,0.42484]
[1725961170493,2.63114567,2354.0,2353.6,0.79454]
[1725961170697,2.63117567,2353.9,2353.6,0.79454]
[1725961170995,2.63116567,2353.9,2353.6,0.3697]
[1725961171381,2.63116567,2353.9,2353.6,0.79455]
[1725961175201,2.20636567,2353.8,2353.6,0.79454]
[1725961175388,2.20636567,2353.9,2353.7,0.42484]
[1725961176396,0.4248,2353.9,2353.7,0.42484]
[1725961176700,0.4248,2353.9,2353.6,0.3697]
[1725961176701,0.4248,2353.9,2353.6,0.79454]
[1725961177193,0.42479,2354.0,2353.7,0.42483]
[1725961177492,0.4248,2353.9,2353.8,0.3987]
[1725961179193,1.43723,2354.1,2353.8,0.3987]
[1725961179194,0.42479,2354.0,2353.8,0.3987]
[1725961183001,2.20636567,2354.0,2353.6,0.79455]
[1725961183298,2.63116567,2354.0,2353.6,0.79455]
[1725961184192,2.20636567,2353.9,2353.6,0.79455]
[1725961184395,0.4248,2354.0,2353.6,0.79455]
[1725961184595,3.30939025,2353.9,2353.6,0.79455]
[1725961184789,3.73419025,2353.9,2353.6,0.79455]
[1725961184990,3.30939025,2353.9,2353.6,0.79455]
[1725961185194,3.73419025,2353.9,2353.6,0.79455]
[1725961185394,3.73419025,2353.9,2353.5,1.64486]
[1725961185600,2.77942287,2353.6,2353.5,1.64486]
[1725961185796,2.77942287,2353.6,2353.5,2.30902799]
[1725961186590,3.30939025,2353.9,2353.4,0.82667]
[1725961186902,3.73420025,2353.9,2353.5,0.42487]
[1725961187100,3.30939025,2353.8,2353.5,0.42487]